Cogmind - Beta 16.1 @@@ ROGUE MODE // 2026.06.18 @ 12:11:33 Player: Lolterzard Result: Destroyed by MC-5KF(R) with Subdweller Beam Cannon Performance ------------- Evolutions (0) 0 Regions Visited (2) 400 Robots Destroyed (28) 140 Value Destroyed (616) 616 Prototype IDs (0) 0 Alien Tech Used (0) 0 Bonus (0) 0 TOTAL SCORE: 1156 Bonus ------- None Cogmind --------- Core Integrity 0/250 Matter 300/300 Energy 250/250 System Corruption 0% Temperature Cool (9) Movement Core (550) Ox10 Location -10/Subcaves Parts ------- > --- POWER (1) -------- Ion Engine > --- PROPULSION (2) --- (None) > --- UTILITY (2) ------ Large Storage Unit Hardened Light Armor Plating > --- WEAPON (2) ------- Light Cannon > --- INVENTORY (15) --- Ion Engine Heat Sink Improved Heat Sink Small Storage Unit Large Matter Pod (118) Hardened Light Armor Plating Hardened Light Armor Plating Hardened Light Armor Plating EM Pulse Gun Assault Rifle Light Assault Rifle Light Assault Rifle Light Assault Rifle Grenade Launcher Peak State ------------ > --- POWER ------------ Ion Engine > --- PROPULSION ------- Light Treads Light Treads > --- UTILITY ---------- Large Storage Unit Large Matter Pod > --- WEAPON ----------- Light Assault Rifle Light Assault Rifle > --- INVENTORY -------- Ion Engine Ion Engine Heat Sink Improved Heat Sink Small Storage Unit Hardened Light Armor Plating Hardened Light Armor Plating Hardened Light Armor Plating EM Pulse Gun Medium Laser Assault Rifle Light Assault Rifle Light Cannon Light Cannon Grenade Launcher [Rating: 9] Favorites ----------- Power Ion Engine Engine Ion Engine Propulsion Light Treads Treads Light Treads Utility Large Storage Unit Device Seismic Detector Storage Large Storage Unit Protection Hardened Light Armor Plating Weapon Light Assault Rifle Ballistic Gun Light Assault Rifle Ballistic Cannon Light Cannon Build | -11 -10 -10 ------- Run | Yrd Mat Sub Slots Evolved . | . . . Power . | . . . Propulsion . | . . . Utility . | . . . Weapon . | . . . Parts Attached 14 | 7 5 2 Power 2 | 1 . 1 Engine 2 | 1 . 1 Core . | . . . Reactor . | . . . Propulsion 3 | 2 1 . Treads 3 | 2 1 . Leg . | . . . Wheel . | . . . Hover . | . . . Flight . | . . . Utility 5 | 2 2 1 Device 1 | 1 . . Storage 3 | 1 2 . Processor . | . . . Hackware . | . . . Protection 1 | . . 1 Artifact . | . . . Weapon 4 | 2 2 . Energy Gun . | . . . Energy Cannon . | . . . Ballistic Gun 2 | 2 . . Ballistic Cannon 2 | . 2 . Launcher . | . . . Special Weapon . | . . . Impact Weapon . | . . . Slashing Weapon . | . . . Piercing Weapon . | . . . Special Melee Weapon . | . . . Unidentified Prototypes . | . . . Parts Lost 5 | . 1 4 Power 1 | . . 1 Propulsion 2 | . . 2 Utility 1 | . 1 . Weapon 1 | . . 1 Highest Loss Streak 2 | . 1 2 To Critical Strikes . | . . . Average Backups 11 | 5 11 14 Power 1 | 1 2 1 Propulsion 1 | 3 2 . Utility 3 | . 3 7 Weapon 4 | 1 4 6 Tool/Special . | . . . Unused Backups 17 | . 7 10 Power 2 | . 1 1 Propulsion 4 | . 4 . Utility 6 | . 1 5 Weapon 5 | . 1 4 Tool/Special . | . . . Average Slot Usage (%) 92 | . 98 81 Engine 11 | . 14 5 Treads 24 | . 28 17 Device 1 | . 2 . Storage 22 | . 23 20 Protection 2 | . . 7 Ballistic Gun 16 | . 23 . Ballistic Cannon 11 | . 4 28 Peak Build Rating 9 | 7 9 9 Average Rating 7 | 5 7 8 On Entrance 5 | . 7 9 Avg Prop Armor Cover (%) 23 | 23 . . Naked Turns . | . . . Heaviest Build 36 | 13 34 36 Greatest Support 40 | 40 40 40 Greatest Overweight (x) 11 | 3 . 11 Average Overweight (x) . | . . . Largest Inventory Capacity 15 | 8 15 15 Average Capacity 13 | 7 14 15 Most Carried 15 | 8 15 15 Average Carried 11 | 6 11 14 Final Capacity 15 | 8 15 15 Final Carried 15 | 8 15 14 Class Distribution -------------------- 100% | Mutant Dominant Class ---------------- Mutant | -10/Materials Mutant | -10/Subcaves Resources | -11 -10 -10 ----------- Run | Yrd Mat Sub Matter Collected 773 | 312 303 158 Remotely . | . . . Salvage Created 884 | 206 497 181 Parts 66 | 21 32 13 Haulers Intercepted 1 | . 1 . Recyclers Shooed 2 | . 2 . Parts Field Recycled . | . . . Retrieved Matter . | . . . Parts Self-Destructed 10 | . . 10 Prevented . | . . . Parts Restored . | . . . Kills | -11 -10 -10 ------- Run | Yrd Mat Sub Combat Hostiles Destroyed 16 | . 10 6 Guns 10 | . 10 . Cannons 6 | . . 6 Classes Destroyed 9 | 3 5 1 Worker 2 | 2 . . Builder 1 | . 1 . Tunneler 4 | 4 . . Hauler 1 | . 1 . Recycler 2 | 1 1 . Watcher 2 | . 2 . Swarmer 3 | . 3 . Grunt 9 | . 7 2 Subdweller 4 | . . 4 Best Kill Streak 5 | 5 5 2 Combat Bots Only 3 | . 3 2 Max Kills in Single Turn 1 | 1 1 1 Gunslinging . | . . . Exploded . | . . . Melee . | . . . Uniques/NPCs Destroyed . | . . . Combat | -11 -10 -10 -------- Run | Yrd Mat Sub Hostile Shots Fired 93 | . 44 49 Missed 22 | . 9 13 Hits 71 | . 35 36 Projectile 71 | . 35 36 Critical Strikes 4 | . 1 3 Damage Taken 1189 | . 492 697 Core 263 | . 109 154 Absorbed by Shields . | . . . Core Remaining (%) 100 | 100 . . Volleys Fired 108 | 21 67 20 Largest 2 | 2 2 2 Hottest 60 | 40 60 60 Shots Fired 216 | 42 134 40 Gun 172 | 42 130 . Cannon 44 | . 4 40 Launcher . | . . . Special . | . . . Kinetic 216 | 42 134 40 Thermal . | . . . Explosive . | . . . Electromagnetic . | . . . Robot Hit Streak 8 | 8 7 7 Robot Miss Streak 5 | 2 5 3 Penetration Max . | . . . Secondary Targets 1 | . 1 . Max Gunslinging Chain 1 | . 1 . Shots Hit Robots 131 | 31 76 24 Core Hits 57 | 14 33 10 Critical Kills 1 | 1 . . Critical Parts Destroyed . | . . . Critical Strikes 4 | 1 . 3 Destroy 1 | 1 . . Blast 3 | . . 3 Melee Attacks . | . . . Impact . | . . . Slashing . | . . . Piercing . | . . . Sneak Attacks . | . . . Combat Hostiles . | . . . Follow-up Attacks . | . . . Damage Inflicted 1253 | 240 676 337 Guns 849 | 240 609 . Cannons 389 | . 52 337 Explosions . | . . . Melee . | . . . Ramming 15 | . 15 . Kinetic 1238 | 240 661 337 Thermal . | . . . Explosive . | . . . Electromagnetic . | . . . Impact . | . . . Slashing . | . . . Piercing . | . . . Highest Corruption . | . . . Average Corruption . | . . . Corruption Purged . | . . . Corruption Blocked . | . . . Overload Shots . | . . . Overflow Damage . | . . . Projectiles . | . . . Explosions . | . . . Melee . | . . . Knockbacks 6 | . 1 5 Impact . | . . . Kinetic 6 | . 1 5 Secondary . | . . . Self-Inflicted Damage . | . . . Shots . | . . . Rammed 3 | . 3 . Targets Rammed 4 | . 4 . Kicked . | . . . Crushed 1 | . 1 . Highest Temperature 27 | . 27 . Average Temperature 11 | . 11 . Received Heat Transfer 438 | . 249 189 Siege Activations . | . . . Martial Activations . | . . . Shielding Activations . | . . . Robots Disrupted . | . . . Combat Hostiles . | . . . Robots Corrupted . | . . . Combat Hostiles . | . . . Parts Fried . | . . . Impact Corruptions . | . . . Robots Melted . | . . . Combat Hostiles . | . . . Parts Melted . | . . . Heat Transferred . | . . . Parts Sabotaged . | . . . Parts Stolen . | . . . Parts Stripped . | . . . Power Chain Reactions . | . . . Alert | -11 -10 -10 ------- Run | Yrd Mat Sub Maximum Alert Level . | . . . Low Security (%) 100 | 100 100 . Level 1 . | . . . Level 2 . | . . . Level 3 . | . . . Level 4 . | . . . Level 5 . | . . . High Security . | . . . Max Security . | . . . Peak Influence 136 | 10 136 . Initial . | . . . Average 28 | 1 34 . Influence Increases 396 | 35 311 50 Destroy 0b10 Robot/C 240 | . 200 40 Destroy 0b10 Robot/NC 60 | 35 25 . Destroy Leader 66 | . 56 10 Lose Combat Pursuer 30 | . 30 . Influence Decreases 372 | 35 311 26 Time Decay 298 | 35 247 16 Lost Part 10 | . . 10 Purge Threat 64 | . 64 . Squads Dispatched 3 | . 3 . Investigation 1 | . 1 . Extermination . | . . . Reinforcement 2 | . 2 . Assault . | . . . Garrison . | . . . Intercept . | . . . Searches Triggered . | . . . Construction Impeded . | . . . Haulers Reinforced . | . . . Active Scanning Responses . | . . . Cargo Convoy Interrupts . | . . . Stealth | -11 -10 -10 --------- Run | Yrd Mat Sub Distress Signals 2 | . 2 . Communications Jammed . | . . . Distress Signals . | . . . Times Spotted 38 | . 26 12 Peak Tracking Total 5 | . 5 4 Tactical Retreats 3 | . 2 1 Traps | -11 -10 -10 ------- Run | Yrd Mat Sub Traps Triggered 1 | . 1 . Indirectly . | . . . Trap Hack Attempts . | . . . Triggered . | . . . Disarmed 6 | . 6 . Reprogrammed . | . . . Reused . | . . . Traps Extracted . | . . . Installed . | . . . Triggered . | . . . Machines | -11 -10 -10 ---------- Run | Yrd Mat Sub Machines Disabled . | . . . Max in Single Turn . | . . . Machines Repaired . | . . . Machines Dismantled . | . . . Machines Sabotaged . | . . . Overloaded Fab Kills . | . . . Hacking | -11 -10 -10 --------- Run | Yrd Mat Sub Machines Accessed 5 | . 5 . Terminals 4 | . 4 . Fabricators . | . . . Repair Stations 1 | . 1 . Recycling Units . | . . . Scanalyzers . | . . . Garrison Access . | . . . Total Hacks 13 | . 13 . Successful 3 | . 3 . Failed 10 | . 10 . Catastrophic . | . . . Database Lockouts . | . . . Manual . | . . . Terminals 10 | . 10 . Fabricators . | . . . Repair Stations 3 | . 3 . Recycling Units . | . . . Scanalyzers . | . . . Garrison Access . | . . . Terminal Hacks 3 | . 3 . Unreport Threat 1 | . 1 . Locate Traps 1 | . 1 . Disarm Traps 1 | . 1 . Fabricator Hacks . | . . . Repair Station Hacks . | . . . Recycling Unit Hacks . | . . . Scanalyzer . | . . . Garrison Access Hacks . | . . . Unauthorized Hacks . | . . . Terminals . | . . . Fabricators . | . . . Repair Stations . | . . . Recycling Units . | . . . Scanalyzers . | . . . Garrison Access . | . . . Data Cores Recovered . | . . . Used . | . . . Hacking Detections 2 | . 2 . Full Trace Events 1 | . 1 . Feedback Events . | . . . Feedback Blocked . | . . . Robot Schematics Acquired . | . . . Robots Built . | . . . Authchips . | . . . Time . | . . . Total Robot Build Rating . | . . . Part Schematics Acquired . | . . . Parts Built . | . . . Authchips . | . . . Time . | . . . Total Part Build Rating . | . . . Part Studies Acquired . | . . . Parts Repaired . | . . . Time . | . . . Parts Recycled . | . . . Recycled Matter . | . . . Retrieved Matter . | . . . Retrieved Components . | . . . Parts Scanalyzed . | . . . Part Schematics Acquired . | . . . Parts Damaged . | . . . Bothacking | -11 -10 -10 ------------ Run | Yrd Mat Sub Used RIF Installer . | . . . Robots Hacked . | . . . Non-combat . | . . . Combat . | . . . Robot Hacks Applied . | . . . Relay Couplers Released . | . . . Fabnet Peak Effective % . | . . . Robots Rewired . | . . . Allies Hacked . | . . . Hacks Repelled . | . . . Allies | -11 -10 -10 -------- Run | Yrd Mat Sub Total Allies . | . . . Largest Group . | . . . Highest-Rated Group . | . . . Highest-Rated Ally . | . . . Total Orders . | . . . Ally Attacks . | . . . Total Damage . | . . . Kills . | . . . Allies Corrupted . | . . . Allies Melted . | . . . Intel | -11 -10 -10 ------- Run | Yrd Mat Sub Active Infowar (turns) 227 | 22 205 . Seismic 227 | 22 205 . Robot Analysis Total . | . . . Derelict Logs Recovered . | . . . Drone Launches . | . . . Drone Recoveries . | . . . Exploration | -11 -10 -10 ------------- Run | Yrd Mat Sub Turns Passed 2002 | 247 1211 544 Spaces Moved 951 | 119 604 228 Core 31 | 25 . 6 Treads 920 | 94 604 222 Legs . | . . . Wheels . | . . . Hover . | . . . Flight . | . . . Fastest Speed 50 | 50 160 160 Average Speed 170 | 146 160 211 Slowest Speed 600 | 200 160 600 Overloaded Moves . | . . . Propulsion Burnouts . | . . . Robots Hopped . | . . . Potential Cave-ins . | . . . Cave-ins Triggered . | . . . Exploration Rate (%) 35 | 5 85 17 Regions Visited 2 Branch Regions 1 Pre-discovered Areas 1 | . . 1 Known Exits Taken . | . . . Unknown Exits Taken 2 | 1 1 . Scrap Searched . | . . . Spaces Dug . | . . . Terrain Destroyed . | . . . Melee . | . . . Projectile . | . . . AOE . | . . . Terrain Rammed . | . . . Walls Destroyed . | . . . Machines Disabled . | . . . Actions | -11 -10 -10 --------- Run | Yrd Mat Sub Total 1151 | 155 742 254 Wait 44 | . 40 4 Move 949 | 118 603 228 Hop . | . . . Pick Up 23 | 9 14 . Fast Attach 7 | 6 1 . Attach 2 | 1 . 1 Detach . | . . . Swap 5 | . 4 1 Drop 9 | . 9 . Fire 108 | 21 67 20 Melee . | . . . Ram . | . . . Kick . | . . . Crush 4 | . 4 . Escape Stasis . | . . . Rewire . | . . . Trap . | . . . Miscellaneous . | . . . Route ------- -11/Scrapyard -10/Materials (discovered 5 exits: [*Mat x3] / [*Min] / [*Sub]) -10/Subcaves History --------- Turn | Location | Event 18 | -11/Scrapyard | Discovered new exit (range 14) 248 | -11/Scrapyard | Entered Materials 300 | -10/Materials | Build established: Mutant 877 | -10/Materials | Discovered new exit (range 3) 1012 | -10/Materials | Discovered new exit (range 7) 1206 | -10/Materials | Discovered new exit (range 15) 1325 | -10/Materials | Discovered new exit (range 10) 1440 | -10/Materials | Discovered new exit (range 11) 1459 | -10/Materials | Entered Subcaves 1460 | -10/Subcaves | Approached by a straggling Scientist 1510 | -10/Subcaves | Core integrity fell below 50% 1575 | -10/Subcaves | Learned location of Zion (-6) 1575 | -10/Subcaves | Met a Zionite searching for "candidates" 1635 | -10/Subcaves | Ambushed by angry Subdweller bent on revenge 1652 | -10/Subcaves | Core integrity fell below 20% 1751 | -10/Subcaves | Shifting Twisted Machinery released Sub. Monowheel 1764 | -10/Subcaves | Shifting Twisted Machinery released Piercing Trap 1999 | -10/Subcaves | A Subdweller sparked back to life 1999 | -10/Subcaves | A Subdweller sparked back to life 2003 | -10/Subcaves | Destroyed by MC-5KF(R) with Subdweller Beam Cannon Last Messages --------------- 01854_ Acquired 44 matter. 01857_ Acquired 1 matter. 01861_ Acquired 8 matter. 01954_ Critical hit (Burn: +37). 01958_ Lgt. Treads destroyed. 01959_ G-47 Trooper knocked back. 01962_ G-47 Trooper destroyed. 01967_ Aluminum Leg fries itself beyond repair. 01968_ G-34 Mercenary destroyed. 01969_ Lgt. Nuclear Core fries itself beyond repair. 01969_ Particle Gun fries itself beyond repair. 01973_ Heat Sink fries itself beyond repair. 01974_ Sml. Laser fries itself beyond repair. 01978_ Acquired 64 matter. 01986_ Aluminum Leg fries itself beyond repair. 01990_ Acquired 5 matter. 01996_ Acquired 7 matter. 01999_ MC-5KF(R) creaks and sparks as it begins to move. 01999_ M5-6CC(R) creaks and sparks as it begins to move. 02002_ Lgt. Cannon destroyed. Map ----- +----------------------------------------------------+ | #??????????????????????# " ##????????????????? | | #??????????????????###### #????????????????? | | #?????????????????## ##"# #????????????????? | | ###???????????????# " " " ##????????????????? | | ##?????????????## "# "" ##?????????????????? | | ##??####?###### # #"" #??????????????????? | | #### ### "" #??????????????????? | | ## # "" #??????????????????? | | = ######" #??????????????????? | | ### "" ##??## #?????????????????? | | #?####### "" ##??#" ##?????????????????? | | ????????##### """ #???###??????????????????? | | ????????????## " ##????????????????????????? | | ????????????#### ##?????????????????????????? | | ????????## ## #" #??????????????????????????? | | ?????? " "& ##?????????????????????????? | | ?????? """" #?????????????????????????? | | ?????? ##"" ## ##?????????????????????????? | | ?????????#" ?## ##?????????????????????????? | | ????????? ??### ###??????##???????????????? | | ??????? #